bitfinex/quotes_SOLUSD_20250226
["timestamp","ask_amount","ask_price","bid_price","bid_amount"]
[1740602700219,0.14216157,135.51,135.46,1.2349]
[1740602700419,3.66016157,135.48,135.46,1.2349]
[1740602700741,0.14216157,135.47,135.46,1.2349]
[1740602701039,3.66016157,135.48,135.46,1.2349]
[1740602701239,3.66016157,135.48,135.43,1.6041]
[1740602701240,0.14216157,135.47,135.43,1.6041]
[1740602701938,0.14216157,135.46,135.43,1.6041]
[1740602702109,0.28432314,135.44,135.43,1.6041]
[1740602702311,4.03002061,135.44,135.43,1.6041]
[1740602702520,3.66016157,135.48,135.43,1.6041]
[1740602702709,85.0825,135.56,135.43,1.6041]
[1740602702918,82.9,135.56,135.43,1.6041]
[1740602703318,82.9,135.55,135.43,1.6041]
[1740602703518,3.63997065,135.53,135.43,1.6041]
[1740602703721,0.28432314,135.51,135.43,1.6041]
[1740602703926,3.63997065,135.53,135.43,1.6041]
[1740602704230,3.63997065,135.53,135.44,18.64964886]
[1740602704442,82.9,135.55,135.43,1.6041]
[1740602704619,6.89056924,135.57,135.43,1.6041]
[1740602704823,0.28432314,135.56,135.43,1.6041]
[1740602705121,6.89056924,135.57,135.43,1.6041]
[1740602705421,6.89056924,135.57,135.44,29.00964886]
[1740602705625,6.89056924,135.57,135.44,234.27932162]
[1740602705818,0.8890159,135.57,135.46,63.24964886]
[1740602706013,4.54716414,135.57,135.46,200.04964886]
[1740602706226,0.8890159,135.57,135.46,200.04964886]
[1740602706413,0.8890159,135.57,135.47,4.79129097]
[1740602708211,0.8890159,135.57,135.44,10.36]
[1740602708212,3.67239315,135.54,135.45,4.79129097]
[1740602709550,3.67239315,135.54,135.44,10.36]
[1740602709811,3.67202242,135.5,135.44,10.36]
[1740602710020,3.67239315,135.54,135.44,10.36]
[1740602710447,3.67239315,135.54,135.45,18.64964886]
[1740602710615,0.9190159,135.57,135.47,18.64964886]
[1740602710816,0.9190159,135.57,135.49,18.64964886]
[1740602711014,0.9190159,135.57,135.51,18.64964886]
[1740602711227,0.9190159,135.57,135.51,155.44964886]
[1740602711950,0.9190159,135.57,135.53,18.64964886]
[1740602712149,0.9190159,135.57,135.55,18.64964886]
[1740602712445,0.8890159,135.67,135.56,10.34]
[1740602712816,0.8890159,135.67,135.57,27.73184886]
[1740602713046,0.8890159,135.67,135.59,18.64964886]
[1740602713218,0.8890159,135.67,135.58,136.8]
[1740602713416,0.8890159,135.67,135.56,136.8]
[1740602713622,0.14216157,135.66,135.57,10.34]
[1740602714015,3.66435885,135.66,135.57,10.34]
[1740602714215,0.8890159,135.67,135.57,10.34]
[1740602714525,0.28432314,135.66,135.57,10.34]
[1740602714722,0.14216157,135.64,135.57,10.34]
[1740602714922,0.28432314,135.62,135.52,124.52]
[1740602715132,0.14216157,135.61,135.52,134.86]
[1740602715333,0.14216157,135.61,135.52,124.52]
[1740602715634,0.14216157,135.59,135.52,124.52]
[1740602715837,0.14216157,135.59,135.51,10.34]
[1740602716536,3.66954759,135.56,135.51,10.34]
[1740602716719,0.28432314,135.59,135.51,10.34]
[1740602716915,0.28432314,135.58,135.51,10.34]
[1740602717539,0.42648471,135.6,135.51,10.34]
[1740602717758,3.92530588,135.6,135.51,10.34]
[1740602717930,82.9,135.64,135.52,18.64964886]
[1740602718242,82.9,135.64,135.52,136.8]
[1740602718243,3.77628702,135.62,135.52,136.8]
[1740602718738,3.7002942,135.57,135.51,10.34]
[1740602718942,3.7002942,135.57,135.46,134.82]
[1740602719125,3.7002942,135.57,135.46,124.48]
[1740602719324,82.9,135.56,135.46,124.48]
[1740602719838,82.9,135.56,135.43,1.6671]
[1740602720020,3.7002942,135.57,135.45,10.34]
[1740602720217,3.7002942,135.57,135.5,0.063]
[1740602720655,3.7002942,135.57,135.43,1.6671]
[1740602720656,101.54964886,135.56,135.43,1.6671]
[1740602720855,93.24,135.55,135.43,1.6671]
[1740602721139,3.74199169,135.5,135.43,1.6671]
[1740602722845,0.14216157,135.49,135.43,1.6671]
[1740602724835,0.14216157,135.45,135.43,1.6671]
[1740602725035,82.9,135.59,135.43,1.6671]
[1740602725274,82.9,135.59,135.44,18.64964886]
[1740602725443,3.6989384,135.53,135.43,138.4671]
[1740602725746,0.14216157,135.52,135.43,1.6671]
[1740602725946,3.6989384,135.53,135.44,18.64964886]
[1740602726153,82.9,135.58,135.45,10.34]
[1740602726449,3.78911116,135.54,135.45,10.34]
[1740602727035,82.9,135.56,135.45,10.34]
[1740602727232,88.93011318,135.59,135.46,18.64964886]
[1740602727436,3.7957666,135.58,135.46,237.84964886]
[1740602727634,3.7957666,135.58,135.46,362.34964886]
[1740602727846,82.9,135.63,135.46,362.34964886]
[1740602728050,82.9,135.63,135.48,18.64964886]
[1740602728051,5.9396942,135.61,135.48,18.64964886]
[1740602728346,2.2295,135.65,135.5,18.64964886]
[1740602728544,91.5178,135.66,135.52,18.64964886]
[1740602728545,3.75385926,135.64,135.52,18.64964886]
[1740602728745,6.00691357,135.66,135.53,1.54858849]
[1740602728932,6.00691357,135.66,135.54,18.64964886]
[1740602729129,0.14216157,135.65,135.54,155.44964886]
[1740602729546,3.64853462,135.65,135.54,136.8]
[1740602729740,3.64853462,135.65,135.54,82.4]
[1740602730132,0.14216157,135.64,135.51,229.54]
[1740602730732,0.14216157,135.64,135.52,10.34]
[1740602731151,3.64853462,135.65,135.52,10.34]
[1740602731347,3.64853462,135.65,135.52,147.14]
[1740602731548,3.64853462,135.65,135.53,18.64964886]
[1740602732253,3.64853462,135.65,135.52,147.14]
[1740602732851,101.69181043,135.64,135.53,10.34]
[1740602733050,101.69181043,135.64,135.5,0.063]
[1740602733239,0.14216157,135.58,135.52,10.32]
[1740602733434,3.73161458,135.59,135.52,10.32]
[1740602734160,0.17216157,135.6,135.55,2.0]
[1740602734161,0.03,135.6,135.55,2.0]
[1740602734369,3.74273712,135.73,135.58,0.56864628]
[1740602734576,9.2700159,135.78,135.61,18.64964886]
[1740602734863,6.00870252,135.75,135.63,3.66228403]
[1740602735067,6.00870252,135.75,135.61,219.2]
[1740602735068,6.00870252,135.75,135.61,136.8]
[1740602735265,6.00870252,135.75,135.62,10.32]
[1740602735563,6.00870252,135.75,135.62,147.12]
[1740602735735,6.00870252,135.75,135.63,18.64964886]
[1740602735930,6.00870252,135.75,135.62,147.12]
[1740602736961,6.00870252,135.75,135.63,4.73791909]
[1740602737752,3.75126441,135.76,135.64,18.64964886]
[1740602737951,3.75126441,135.76,135.64,155.44964886]
[1740602738147,0.8890159,135.78,135.66,19.21829514]
[1740602738363,0.8890159,135.78,135.66,20.19694127]
[1740602738747,6.68730113,135.78,135.66,155.44964886]
[1740602738928,6.68730113,135.78,135.65,136.8]
[1740602739129,3.74858386,135.76,135.63,136.8]
[1740602739555,0.14216157,135.75,135.63,136.8]
[1740602739758,0.14216157,135.71,135.62,10.32]
[1740602739936,3.74858386,135.76,135.64,4.74020995]
[1740602740139,0.14216157,135.75,135.64,141.54020995]
[1740602740442,0.14216157,135.73,135.64,4.74020995]
[1740602741467,3.65293031,135.71,135.64,10.32]
[1740602741839,0.14216157,135.7,135.64,10.32]
[1740602742838,0.14216157,135.72,135.64,10.32]
[1740602743245,2.741202,135.73,135.64,10.32]
[1740602743653,2.741202,135.73,135.65,4.75689643]
[1740602744255,18.79181043,135.71,135.65,4.75689643]
[1740602744464,0.14216157,135.71,135.65,4.75689643]
[1740602744850,3.70079294,135.7,135.65,4.75689643]
[1740602745067,3.70079294,135.7,135.6,4.75689643]
[1740602745246,8.5982,135.72,135.6,107.3545572]
[1740602745446,2.741202,135.73,135.6,244.1545572]
[1740602745648,2.741202,135.73,135.6,242.60654529]
[1740602745846,2.741202,135.73,135.6,223.95689643]
[1740602746064,2.741202,135.73,135.61,18.64964886]
[1740602746262,2.741202,135.73,135.61,22.358963]
[1740602746471,2.741202,135.73,135.61,12.34782594]
[1740602746769,85.641202,135.73,135.61,12.34782594]
[1740602747169,2.741202,135.73,135.61,149.14782594]
[1740602747666,2.741202,135.73,135.62,4.75689643]
[1740602748065,2.741202,135.73,135.63,18.64964886]
[1740602748255,2.741202,135.73,135.64,1.54750724]
[1740602748453,2.741202,135.73,135.65,10.32]
[1740602749068,2.741202,135.73,135.62,4.75689643]
[1740602749069,3.78044026,135.71,135.62,4.75689643]
[1740602749273,3.78044026,135.71,135.6,10.3]
[1740602750353,101.54964886,135.7,135.6,10.3]
[1740602750959,2.0777,135.69,135.55,6.84476399]
[1740602751274,2.0777,135.69,135.55,143.64476399]
[1740602751575,3.68587568,135.65,135.55,143.64476399]
[1740602751976,3.68587568,135.65,135.55,136.8]
[1740602752174,3.68587568,135.65,135.56,4.76609248]
[1740602752760,0.14216157,135.64,135.56,4.76609248]
[1740602752972,0.14216157,135.6,135.56,4.76609248]
[1740602753573,83.04216157,135.6,135.56,4.76609248]
[1740602753761,0.14216157,135.58,135.51,10.3]
[1740602754855,0.14216157,135.58,135.5,0.063]
[1740602755172,0.14216157,135.54,135.5,0.063]
[1740602755377,89.00568668,135.54,135.5,0.063]
[1740602755766,0.14216157,135.53,135.5,0.063]
[1740602756179,0.14216157,135.53,135.46,7.63813096]
[1740602756374,0.14216157,135.52,135.46,7.63813096]
[1740602756579,1.28810374,135.52,135.44,10.3]
[1740602757473,0.28432314,135.51,135.44,10.3]
[1740602757670,0.14216157,135.5,135.44,10.3]
[1740602757873,1.0037806,135.52,135.44,10.3]
[1740602758568,0.42648471,135.51,135.44,10.3]
[1740602758764,1.0037806,135.52,135.44,10.3]
[1740602758971,0.42648471,135.51,135.43,1.6671]
[1740602759165,0.42648471,135.51,135.44,10.3]
[1740602759166,0.28432314,135.5,135.44,10.3]
[1740602759681,3.82137582,135.51,135.44,10.3]
[1740602759873,0.14216157,135.5,135.44,10.3]
[1740602760074,3.67921425,135.51,135.44,10.3]
[1740602760371,0.14216157,135.5,135.44,10.3]
[1740602760582,0.14216157,135.48,135.43,1.6671]
[1740602760960,3.67921425,135.51,135.43,1.6671]
[1740602761164,1.0037806,135.52,135.43,1.6671]
[1740602761372,1.0037806,135.52,135.44,18.64964886]
[1740602761577,1.0037806,135.52,135.45,10.3]
[1740602762084,83.04216157,135.51,135.45,10.3]
[1740602762260,82.9,135.5,135.43,1.6671]
[1740602762464,0.14216157,135.49,135.43,1.6671]
[1740602764382,3.63885011,135.46,135.43,1.6671]
[1740602764559,0.14216157,135.45,135.37,0.063]
[1740602764760,83.04216157,135.45,135.37,0.063]
[1740602765173,0.14216157,135.43,135.37,0.063]
[1740602765374,0.14216157,135.4,135.37,0.063]
[1740602765589,3.73939338,135.41,135.37,0.063]
[1740602765795,0.14216157,135.4,135.37,0.063]
[1740602766371,3.73939338,135.41,135.37,0.063]
[1740602766566,83.04216157,135.42,135.37,0.063]
[1740602766567,8.3252,135.45,135.37,0.063]
[1740602766770,0.14216157,135.44,135.37,0.063]
[1740602766992,91.3577,135.51,135.37,0.063]
[1740602767169,3.63885562,135.5,135.37,136.863]
[1740602767372,6.94749593,135.54,135.38,124.52]
[1740602767576,6.94749593,135.54,135.39,10.05838527]
[1740602767780,3.71533804,135.51,135.39,10.05838527]
[1740602768070,86.61533804,135.51,135.38,134.82]
[1740602768288,3.71533804,135.51,135.39,18.64964886]
[1740602768479,3.71533804,135.51,135.39,20.19979133]
[1740602768699,0.28432314,135.5,135.38,134.82]
[1740602768871,0.45648471,135.5,135.38,134.82]
[1740602769071,0.45648471,135.5,135.38,134.84]
[1740602769072,0.28432314,135.49,135.38,134.84]
[1740602769291,0.42648471,135.46,135.38,134.84]
[1740602769488,19.07613357,135.46,135.38,10.32]
[1740602769701,8.44408471,135.46,135.38,10.32]
[1740602771597,28.09751417,135.46,135.38,10.32]
[1740602771809,0.42648471,135.42,135.37,0.063]
[1740602771976,83.32648471,135.42,135.37,0.063]
[1740602772177,0.14216157,135.4,135.37,0.063]
[1740602772483,0.14216157,135.38,135.29,0.063]
[1740602772680,0.14216157,135.36,135.29,0.063]
[1740602772998,0.14216157,135.34,135.29,0.063]
[1740602773492,3.77214833,135.34,135.29,0.063]
[1740602773692,0.14216157,135.33,135.29,0.063]
[1740602773899,3.77214833,135.34,135.29,0.063]
[1740602774198,0.14216157,135.37,135.29,0.063]
[1740602774785,0.14216157,135.35,135.29,0.063]
[1740602775098,18.79181043,135.35,135.29,0.063]
[1740602775299,0.28432314,135.3,135.23,0.063]
[1740602775487,83.18432314,135.3,135.23,0.063]
[1740602775791,82.9,135.29,135.23,0.063]
[1740602776573,16.17390612,135.33,135.23,136.863]
[1740602776779,0.28432314,135.3,135.23,136.863]
[1740602776997,0.28432314,135.3,135.23,0.063]
[1740602777200,0.14216157,135.31,135.23,0.063]
[1740602777393,2.1504,135.33,135.23,0.063]
[1740602777594,2.1504,135.33,135.23,136.863]
[1740602777799,0.28432314,135.34,135.23,136.863]
[1740602778390,0.28432314,135.34,135.24,18.64964886]
[1740602778588,8.875,135.36,135.25,10.32]
[1740602778799,12.06237495,135.41,135.26,21.20170146]
[1740602778993,12.06237495,135.41,135.28,18.64964886]
[1740602778994,8.4213,135.41,135.28,18.64964886]
[1740602779194,8.4213,135.41,135.29,1.55131822]
[1740602779393,2.018,135.43,135.29,220.75131822]
[1740602779582,2.018,135.43,135.3,3.74021102]
[1740602779783,2.018,135.43,135.31,10.3]
[1740602779989,101.833972,135.42,135.31,10.3]
[1740602780311,101.833972,135.42,135.27,10.3]
[1740602781109,18.933972,135.38,135.27,10.3]
[1740602781401,112.133972,135.38,135.23,10.363]
[1740602781582,0.03,135.34,135.23,10.363]
[1740602782001,0.03,135.34,135.23,10.263]
[1740602782598,0.03,135.34,135.24,18.64964886]
[1740602782986,0.03,135.34,135.23,10.263]
[1740602783185,0.03,135.34,135.23,231.0151264]
[1740602783410,0.03,135.34,135.23,147.063]
[1740602783804,0.03,135.34,135.23,10.263]
[1740602783987,3.63135664,135.32,135.23,231.2004214]
[1740602784384,3.63135664,135.32,135.24,18.64964886]
[1740602784924,0.14216157,135.31,135.24,18.64964886]
[1740602785122,0.14216157,135.31,135.24,237.84964886]
[1740602785367,0.14216157,135.38,135.24,237.84964886]
[1740602785489,3.83927037,135.34,135.24,237.84964886]
[1740602786896,12.04687037,135.34,135.24,237.84964886]
[1740602787207,0.14216157,135.33,135.24,237.84964886]
[1740602787404,0.14216157,135.32,135.24,237.84964886]
[1740602788095,0.28432314,135.32,135.24,237.84964886]
[1740602788293,0.28432314,135.3,135.24,237.84964886]
[1740602788495,0.28432314,135.29,135.24,237.84964886]
[1740602788702,0.14216157,135.27,135.24,219.2]
[1740602788915,0.28432314,135.27,135.24,219.2]
[1740602789203,0.28432314,135.26,135.24,219.2]
[1740602789714,0.14216157,135.25,135.24,219.2]
[1740602790212,0.14216157,135.25,135.23,20.38707026]
[1740602790213,0.42648471,135.24,135.23,138.5374214]
[1740602791096,3.76602493,135.3,135.23,1.7374214]
[1740602791097,0.14216157,135.29,135.23,1.7374214]
[1740602792295,0.14216157,135.29,135.2,15.34984628]
[1740602792500,0.14216157,135.23,135.2,126.2699321]
[1740602793107,0.14216157,135.23,135.16,209.7329321]
[1740602793289,0.14216157,135.23,135.16,1.063]
[1740602793485,0.14216157,135.23,135.22,0.063]
[1740602794105,0.14216157,135.23,135.16,1.063]
[1740602794310,0.14216157,135.23,135.16,1e-08]
[1740602794817,0.14216157,135.23,135.17,18.64964886]
[1740602795004,3.63777063,135.24,135.17,144.91958096]
[1740602795189,3.63777063,135.24,135.17,227.31958096]
[1740602795394,3.67274153,135.26,135.17,227.31958096]
[1740602795591,0.03,135.34,135.19,18.64964886]
[1740602795797,3.80059248,135.27,135.21,18.64964886]
[1740602796098,0.14216157,135.26,135.21,126.2699321]
[1740602796409,3.80059248,135.27,135.22,18.64964886]
[1740602796625,0.03,135.34,135.22,227.31958096]
[1740602796816,3.72774717,135.28,135.22,227.31958096]
[1740602797323,3.65341522,135.3,135.22,227.31958096]
[1740602798213,3.65341522,135.3,135.23,4.78836813]
[1740602798516,0.14216157,135.29,135.23,131.05830023]
[1740602799018,3.65341522,135.3,135.24,18.64964886]
[1740602799221,3.65341522,135.3,135.24,227.31958096]
[1740602799814,0.14216157,135.29,135.23,126.2699321]
[1740602800014,0.14216157,135.29,135.22,124.74]
[1740602800206,0.14216157,135.29,135.22,120.8744798]
[1740602800413,3.68856358,135.25,135.22,120.8744798]
[1740602800999,0.14216157,135.24,135.22,120.8744798]
[1740602801209,3.68856358,135.25,135.22,120.8744798]
[1740602801719,0.14216157,135.24,135.22,120.8744798]
[1740602802115,3.68856358,135.25,135.22,120.8744798]
[1740602802818,0.14216157,135.24,135.22,120.8744798]
[1740602803014,3.68856358,135.25,135.2,18.64964886]
[1740602803204,0.14216157,135.24,135.18,10.3]
[1740602803410,0.14216157,135.24,135.16,343.70993211]
[1740602803719,0.14216157,135.24,135.16,110.45249544]
[1740602803908,0.14216157,135.2,135.16,110.45249544]
[1740602804311,3.65230024,135.21,135.16,110.45249544]
[1740602805002,0.14216157,135.2,135.16,110.51549544]
[1740602805912,3.65230024,135.21,135.16,110.51549544]
[1740602806113,3.65230024,135.21,135.16,236.78542754]
[1740602806506,3.71856358,135.25,135.17,18.64964886]
[1740602806705,3.71856358,135.25,135.17,227.31958096]
[1740602807420,0.14216157,135.24,135.17,227.31958096]
[1740602807808,0.14216157,135.24,135.18,10.3]
[1740602808123,3.71856358,135.25,135.19,18.64964886]
[1740602810106,3.71856358,135.25,135.19,227.31958096]
[1740602810910,3.71856358,135.25,135.19,208.6699321]
[1740602811720,3.71856358,135.25,135.2,18.64964886]
[1740602811921,3.71856358,135.25,135.2,144.91958096]
[1740602812334,3.71856358,135.25,135.2,227.31958096]
[1740602812740,3.71856358,135.25,135.2,208.6699321]
[1740602813035,3.71856358,135.25,135.18,136.5699321]
[1740602813203,3.71856358,135.25,135.19,18.64964886]
[1740602813404,3.71856358,135.25,135.19,126.2699321]
[1740602815324,3.71856358,135.25,135.19,10.28]
[1740602815532,3.673579,135.21,135.19,10.28]
[1740602818826,3.673579,135.21,135.16,100.21549544]
[1740602820442,3.673579,135.21,135.16,90.93469073]
[1740602820630,3.673579,135.21,135.16,0.063]
[1740602821138,3.78182761,135.17,135.16,0.063]
[1740602821519,3.673579,135.21,135.16,0.063]
[1740602821743,3.673579,135.21,135.16,126.2441321]
[1740602822037,3.673579,135.21,135.16,0.063]
[1740602822244,3.673579,135.21,135.16,126.2441321]
[1740602822413,0.03,135.25,135.17,28.92964886]
[1740602822612,3.71267598,135.23,135.17,237.51078096]
[1740602823134,0.03,135.25,135.17,218.8611321]
[1740602823436,3.71825337,135.24,135.16,126.2441321]
[1740602823941,0.14216157,135.23,135.16,0.063]
[1740602824129,0.42648471,135.19,135.16,0.063]
[1740602824438,0.42648471,135.19,135.12,10.28]
[1740602824623,0.42648471,135.19,135.14,4.87479603]
[1740602824825,0.42648471,135.19,135.14,1e-08]
[1740602825039,19.07613357,135.19,135.14,1e-08]
[1740602826063,3.72829265,135.15,135.14,1e-08]
[1740602826350,0.42648471,135.14,135.09,0.9317107]
[1740602827040,3.72829265,135.15,135.09,0.9317107]
[1740602827247,3.72829265,135.15,135.09,127.1128428]
[1740602827420,3.72829265,135.15,135.09,137.3928428]
[1740602829050,3.72829265,135.15,135.09,127.1128428]
[1740602829444,3.72829265,135.15,135.09,0.9317107]
[1740602830527,3.72829265,135.15,135.09,209.5128428]
[1740602831059,3.72829265,135.15,135.09,0.9317107]
[1740602831724,10.28,135.14,135.04,208.5811321]
[1740602832047,10.28,135.14,135.02,126.2441321]
[1740602832347,3.6879196,135.1,135.02,126.2441321]
[1740602832563,3.6879196,135.1,135.02,208.6441321]
[1740602835154,3.6879196,135.1,135.03,18.64964886]
[1740602835750,3.6879196,135.1,135.03,227.23078096]
[1740602835956,10.28,135.17,135.03,227.23078096]
[1740602836253,7.368,135.21,135.06,18.64964886]
[1740602836470,3.74873724,135.14,135.06,237.51078096]
[1740602836874,5.92462745,135.21,135.09,1.9054]
[1740602837159,3.71635959,135.18,135.1,26.11654886]
[1740602837367,3.71635959,135.18,135.1,361.13126986]
[1740602837529,3.71635959,135.18,135.1,359.57768096]
[1740602837730,0.03,135.23,135.1,360.57768096]
[1740602837984,0.03,135.23,135.1,359.57768096]
[1740602838158,5.84751099,135.23,135.12,18.64964886]
[1740602838358,5.84751099,135.23,135.14,18.64964886]
[1740602838560,0.03,135.23,135.16,18.64964886]
[1740602838959,0.03,135.23,135.14,208.5811321]
[1740602840463,3.72169506,135.2,135.14,208.5811321]
[1740602840663,0.14216157,135.19,135.14,208.5811321]
[1740602840872,3.72169506,135.2,135.14,208.5811321]
[1740602842562,0.03,135.23,135.15,18.64964886]
[1740602842767,0.03,135.23,135.15,227.23078096]
[1740602842983,0.28432314,135.22,135.15,227.23078096]
[1740602843195,0.03,135.23,135.15,227.23078096]
[1740602843365,0.03,135.23,135.15,228.23078096]
[1740602843567,0.03,135.23,135.18,18.64964886]
[1740602843767,0.03,135.23,135.2,25.21704886]
[1740602843977,0.03,135.23,135.2,236.35061049]
[1740602844214,0.03,135.23,135.21,1.55228027]
[1740602844391,0.03,135.23,135.21,210.13341237]
[1740602844686,0.03,135.23,135.22,18.64964886]
[1740602844982,0.03,135.23,135.22,20.20192294]
[1740602845180,0.03,135.23,135.22,228.78305504]
[1740602845363,0.03,135.23,135.22,227.23078096]
[1740602846684,0.03,135.23,135.22,208.5811321]
[1740602848391,0.03,135.23,135.22,227.23078096]
[1740602849383,0.03,135.23,135.22,208.5811321]
[1740602850022,0.03,135.38,135.35,1.0]
[1740602850218,0.8687107,135.46,135.45,1.0]
[1740602850507,92.73785195,135.58,135.5,1.0]
[1740602850685,116.82214708,135.6,135.51,12.8090534]
[1740602850888,116.82214708,135.6,135.51,138.9901855]
[1740602851217,3.67722024,135.6,135.51,127.7301855]
[1740602851390,3.67722024,135.6,135.51,126.1811321]
[1740602851590,3.65291498,135.56,135.51,126.1811321]
[1740602851919,3.65291498,135.56,135.49,124.76]
[1740602852120,3.6436455,135.52,135.45,126.1811321]
[1740602852304,3.6436455,135.52,135.43,126.1811321]
[1740602852507,11.1287107,135.57,135.4,250.9411321]
[1740602852818,10.26,135.56,135.4,250.9411321]
[1740602853020,10.26,135.56,135.4,251.9411321]
[1740602853217,10.26,135.56,135.42,1.0]
[1740602853391,3.69740846,135.51,135.44,1.0]
[1740602853591,0.8687107,135.57,135.44,127.1811321]
[1740602853791,0.8687107,135.57,135.46,1.0]
[1740602854015,0.8687107,135.57,135.45,12.7895054]
[1740602854191,3.63719811,135.54,135.45,10.24]
[1740602854392,3.63719811,135.54,135.45,10.68965384]
[1740602855212,0.8687107,135.57,135.46,1.0]
[1740602855394,3.68208347,135.55,135.47,2.54930204]
[1740602855712,3.68208347,135.55,135.47,211.13043414]
[1740602855914,3.68208347,135.55,135.47,209.5811321]
[1740602856306,0.8687107,135.57,135.48,1.0]
[1740602856502,0.8687107,135.57,135.5,1.0]
[1740602856727,0.8687107,135.57,135.51,1.54888314]
[1740602856907,0.8687107,135.57,135.54,1.0]
[1740602857096,0.8687107,135.57,135.55,2.54830331]
[1740602857296,0.8687107,135.57,135.55,211.12943541]
[1740602857499,0.8687107,135.57,135.55,208.5811321]
[1740602857993,0.8687107,135.57,135.55,209.5811321]
[1740602858193,0.8687107,135.57,135.56,1.0]
[1740602858603,0.8687107,135.57,135.55,209.5811321]
[1740602858817,0.8687107,135.57,135.56,2.54831642]
[1740602859115,10.24,135.69,135.59,1.0]
[1740602859321,3.64357761,135.69,135.6,1.0]
[1740602859609,3.64357761,135.69,135.6,207.7124214]
[1740602860822,0.14216157,135.68,135.6,207.7124214]
[1740602860991,0.28432314,135.68,135.6,207.7124214]
[1740602861803,0.28432314,135.66,135.6,207.7124214]
[1740602862000,3.69597802,135.65,135.6,207.7124214]
[1740602862607,0.28432314,135.66,135.6,207.7124214]
[1740602863318,0.42648471,135.69,135.6,207.7124214]
[1740602864204,3.67863926,135.64,135.6,207.7124214]
[1740602864406,0.03,135.67,135.6,207.7124214]
[1740602864917,3.67454691,135.67,135.6,207.7124214]
[1740602866602,3.17454691,135.67,135.6,207.7124214]
[1740602866805,3.17454691,135.67,135.61,1.54786535]
[1740602867212,3.17454691,135.67,135.61,125.3124214]
[1740602867434,3.17454691,135.67,135.58,125.3124214]
[1740602867435,0.14216157,135.66,135.58,125.3124214]
[1740602868725,3.68800114,135.61,135.58,125.3124214]
[1740602868923,3.68800114,135.61,135.58,207.7124214]
[1740602869423,0.14216157,135.67,135.58,207.7124214]
[1740602870529,3.71328121,135.65,135.59,11.767966]
[1740602870725,82.9,135.79,135.59,219.4803874]
[1740602870909,10.22,135.76,135.59,218.9324214]
[1740602871110,0.17216157,135.75,135.59,218.9324214]
[1740602871311,9.89216157,135.76,135.59,218.9324214]
[1740602871745,9.89216157,135.76,135.6,6.3827]
[1740602871934,9.89216157,135.76,135.61,1.54759844]
[1740602872533,9.89216157,135.76,135.61,209.26001984]
[1740602872707,3.75442047,135.68,135.61,207.7124214]
[1740602876133,5.92962738,135.76,135.62,1.54802906]
[1740602876443,5.92962738,135.76,135.64,1.0]
[1740602876646,5.92962738,135.76,135.65,11.76702771]
[1740602876827,5.92962738,135.76,135.65,219.47944911]
[1740602877145,3.71710575,135.75,135.65,217.9324214]
[1740602877643,3.71710575,135.75,135.65,218.9324214]
[1740602878359,3.71710575,135.75,135.66,1.54695112]
[1740602878537,3.71710575,135.75,135.66,209.25937252]
[1740602878856,3.71710575,135.75,135.66,208.7124214]
[1740602879049,3.71710575,135.75,135.66,207.7124214]
[1740602879547,0.03,135.76,135.7,1.6074]
[1740602879747,0.03,135.76,135.71,11.76650501]
[1740602879950,0.03,135.76,135.71,220.47892641]
[1740602880144,0.03,135.76,135.72,1.0]
[1740602880459,0.03,135.81,135.77,1.0]
[1740602880761,0.03,135.81,135.78,1.0]
[1740602880929,6.22112468,135.92,135.83,1.0]
[1740602881125,6.22112468,135.92,135.87,1.0]
[1740602881126,0.13758082,135.92,135.87,1.0]
[1740602881324,0.13758082,135.92,135.87,208.7124214]
[1740602881655,0.13758082,135.92,135.88,1.54469412]
[1740602882449,0.13758082,135.92,135.88,209.25711552]
[1740602882640,0.13758082,135.92,135.88,208.7124214]
[1740602882832,0.13758082,135.92,135.88,207.7124214]
[1740602884058,0.13758082,135.92,135.88,125.3124214]
[1740602884544,0.14216157,135.91,135.83,217.9124214]
[1740602884748,0.13758082,135.92,135.83,135.5124214]
[1740602885127,0.14216157,135.97,135.83,135.5124214]
[1740602885446,0.14216157,135.89,135.83,217.9124214]
[1740602885624,0.14216157,135.89,135.83,135.5124214]
[1740602886022,3.63123228,135.9,135.83,217.9124214]